[Event "*** Titled Tuesday Blitz"]
[Site "Chess.com"]
[Date "2021.04.27"]
[Round "5"]
[White "Trickster_Pony"]
[Black "Irishchessman16"]
[Result "0-1"]
[WhiteElo "1621"]
[BlackElo "2287"]
[TimeControl "180+1"]
[EndTime "10:56:15 PDT"]
[Termination "Irishchessman16 won by checkmate"]

1. c4 {[%clk 0:03:00.9]} 1... f5 {[%clk 0:02:55.8]} 2. g3 {[%clk 0:02:58.8]}
2... Nf6 {[%clk 0:02:56]} 3. Bg2 {[%clk 0:02:58.8]} 3... e5 {[%clk 0:02:50.7]}
4. Nc3 {[%clk 0:02:56.9]} 4... Be7 {[%clk 0:02:47]} 5. e3 {[%clk 0:02:57.2]}
5... O-O {[%clk 0:02:46.8]} 6. Nge2 {[%clk 0:02:57.7]} 6... d6 {[%clk
0:02:46.4]} 7. O-O {[%clk 0:02:56.9]} 7... c6 {[%clk 0:02:46.6]} 8. d4 {[%clk
0:02:57]} 8... Nbd7 {[%clk 0:02:43.8]} 9. b3 {[%clk 0:02:53.7]} 9... Kh8 {[%clk
0:02:37.9]} 10. Bb2 {[%clk 0:02:50.3]} 10... Qe8 {[%clk 0:02:37.7]} 11. Qc2
{[%clk 0:02:49.4]} 11... Qh5 {[%clk 0:02:13.6]} 12. Rad1 {[%clk 0:02:34.6]}
12... Ng4 {[%clk 0:01:47.1]} 13. h3 {[%clk 0:02:31.8]} 13... Ngf6 {[%clk
0:01:47.6]} 14. Ba3 {[%clk 0:02:23.4]} 14... Re8 {[%clk 0:01:40.9]} 15. dxe5
{[%clk 0:02:17]} 15... dxe5 {[%clk 0:01:40.3]} 16. Bxe7 {[%clk 0:02:12.4]} 16...
Rxe7 {[%clk 0:01:41.2]} 17. e4 {[%clk 0:02:12]} 17... f4 {[%clk 0:01:20.8]} 18.
gxf4 {[%clk 0:02:04.1]} 18... exf4 {[%clk 0:01:12.8]} 19. Nxf4 {[%clk 0:02:05]}
19... Qg5 {[%clk 0:01:11.2]} 20. Qd2 {[%clk 0:01:49.5]} 20... Nf8 {[%clk
0:01:02.9]} 21. Kh1 {[%clk 0:01:17.1]} 21... Bd7 {[%clk 0:00:48.7]} 22. Rfe1
{[%clk 0:00:59.9]} 22... Rae8 {[%clk 0:00:46.5]} 23. Nd3 {[%clk 0:00:44.5]}
23... Qh5 {[%clk 0:00:37.9]} 24. e5 {[%clk 0:00:35.8]} 24... Ng4 {[%clk
0:00:34.4]} 25. f4 {[%clk 0:00:21.6]} 25... Qh4 {[%clk 0:00:24.6]} 26. Kg1
{[%clk 0:00:20.7]} 26... Nh6 {[%clk 0:00:20.6]} 27. Qf2 {[%clk 0:00:20.8]} 27...
Qh5 {[%clk 0:00:20.7]} 28. Qf3 {[%clk 0:00:20.5]} 28... Qg6 {[%clk 0:00:19.6]}
29. Kh1 {[%clk 0:00:19.4]} 29... Nf5 {[%clk 0:00:19.6]} 30. Nf2 {[%clk
0:00:18.7]} 30... Nh4 {[%clk 0:00:19.4]} 31. Ng4 {[%clk 0:00:17.6]} 31... Nxf3
{[%clk 0:00:17.9]} 32. Bxf3 {[%clk 0:00:15.5]} 32... h5 {[%clk 0:00:18.1]} 33.
Be4 {[%clk 0:00:13.5]} 33... Qf7 {[%clk 0:00:18.4]} 34. e6 {[%clk 0:00:09.6]}
34... Bxe6 {[%clk 0:00:18.2]} 35. Ne5 {[%clk 0:00:09.9]} 35... Qxf4 {[%clk
0:00:18.4]} 36. Ng6+ {[%clk 0:00:09.8]} 36... Nxg6 {[%clk 0:00:18.5]} 37. Bxg6
{[%clk 0:00:09.6]} 37... Bxh3 {[%clk 0:00:17.4]} 38. Rxe7 {[%clk 0:00:01.7]}
38... Qf3+ {[%clk 0:00:17.2]} 39. Kg1 {[%clk 0:00:01.5]} 39... Qg2# {[%clk
0:00:18.1]} 0-1

[Event "*** Titled Tuesday Blitz"]
[Site "Chess.com"]
[Date "2021.04.27"]
[Round "5"]
[White "Bigfish1995"]
[Black "A-Fier"]
[Result "1-0"]
[WhiteElo "2999"]
[BlackElo "2834"]
[TimeControl "180+1"]
[EndTime "10:56:20 PDT"]
[Termination "Bigfish1995 won by checkmate"]

1. d4 {[%clk 0:03:00.9]} 1... d5 {[%clk 0:02:59.4]} 2. Bf4 {[%clk 0:03:00.2]}
2... c5 {[%clk 0:02:58.7]} 3. e3 {[%clk 0:02:57.8]} 3... Nc6 {[%clk 0:02:59]} 4.
c3 {[%clk 0:02:57.3]} 4... Qb6 {[%clk 0:02:58]} 5. Qc1 {[%clk 0:02:49.6]} 5...
Bf5 {[%clk 0:02:56.6]} 6. Nf3 {[%clk 0:02:49.4]} 6... Rc8 {[%clk 0:02:54.5]} 7.
Nbd2 {[%clk 0:02:22.3]} 7... e6 {[%clk 0:02:54.1]} 8. Be2 {[%clk 0:02:21.4]}
8... Nf6 {[%clk 0:02:49.1]} 9. O-O {[%clk 0:02:21.2]} 9... Nh5 {[%clk
0:02:49.3]} 10. Be5 {[%clk 0:02:12.7]} 10... f6 {[%clk 0:02:46]} 11. Bg3 {[%clk
0:02:04.9]} 11... Nxg3 {[%clk 0:02:44.3]} 12. hxg3 {[%clk 0:02:03.9]} 12... Bg6
{[%clk 0:02:33.7]} 13. Re1 {[%clk 0:02:00.3]} 13... Be7 {[%clk 0:02:22.8]} 14.
Nb3 {[%clk 0:01:55.9]} 14... c4 {[%clk 0:02:20.2]} 15. Nbd2 {[%clk 0:01:55.9]}
15... f5 {[%clk 0:02:19.7]} 16. b3 {[%clk 0:01:52.4]} 16... cxb3 {[%clk
0:02:17.3]} 17. axb3 {[%clk 0:01:52.7]} 17... O-O {[%clk 0:02:17.5]} 18. Qb2
{[%clk 0:01:51.3]} 18... Bf6 {[%clk 0:02:05.9]} 19. c4 {[%clk 0:01:50.2]} 19...
Qc7 {[%clk 0:01:46.4]} 20. Rec1 {[%clk 0:01:48.9]} 20... Qe7 {[%clk 0:01:41.8]}
21. b4 {[%clk 0:01:30]} 21... a6 {[%clk 0:01:10.7]} 22. b5 {[%clk 0:01:21.4]}
22... axb5 {[%clk 0:01:10.1]} 23. cxd5 {[%clk 0:01:21.5]} 23... exd5 {[%clk
0:01:09.6]} 24. Qxb5 {[%clk 0:01:21.5]} 24... Bf7 {[%clk 0:01:09.1]} 25. Nb3
{[%clk 0:01:18.2]} 25... Rc7 {[%clk 0:00:55.5]} 26. Nc5 {[%clk 0:01:13.9]} 26...
Rfc8 {[%clk 0:00:55.4]} 27. Bd3 {[%clk 0:01:10.4]} 27... g6 {[%clk 0:00:54.6]}
28. Rcb1 {[%clk 0:01:09.4]} 28... Be8 {[%clk 0:00:54.7]} 29. Qb3 {[%clk
0:01:06.6]} 29... Kg7 {[%clk 0:00:50.1]} 30. Ra2 {[%clk 0:01:02]} 30... Rb8
{[%clk 0:00:47.6]} 31. Bb5 {[%clk 0:01:00.2]} 31... g5 {[%clk 0:00:41.1]} 32.
Rab2 {[%clk 0:00:56.2]} 32... g4 {[%clk 0:00:40.7]} 33. Bxc6 {[%clk 0:00:47.8]}
33... Bxc6 {[%clk 0:00:39.9]} 34. Ne1 {[%clk 0:00:47.8]} 34... Rh8 {[%clk
0:00:37.2]} 35. Ned3 {[%clk 0:00:46.3]} 35... h5 {[%clk 0:00:37.4]} 36. Nf4
{[%clk 0:00:46.1]} 36... h4 {[%clk 0:00:37.1]} 37. Nce6+ {[%clk 0:00:44.6]}
37... Kh6 {[%clk 0:00:28.4]} 38. gxh4 {[%clk 0:00:40.7]} 38... Rd7 {[%clk
0:00:27]} 39. g3 {[%clk 0:00:40.3]} 39... Ra8 {[%clk 0:00:25]} 40. Qd3 {[%clk
0:00:39.3]} 40... Ra3 {[%clk 0:00:24.9]} 41. Qxf5 {[%clk 0:00:38.4]} 41... Qf7
{[%clk 0:00:25]} 42. Qxg4 {[%clk 0:00:34.3]} 42... Re7 {[%clk 0:00:23.9]} 43.
Ng5 {[%clk 0:00:31.8]} 43... Qe8 {[%clk 0:00:22.9]} 44. Qf5 {[%clk 0:00:31.7]}
44... Kg7 {[%clk 0:00:19.2]} 45. Nge6+ {[%clk 0:00:24.2]} 45... Kf7 {[%clk
0:00:18.9]} 46. Qg6# {[%clk 0:00:23.6]} 1-0

[Event "*** Titled Tuesday Blitz"]
[Site "Chess.com"]
[Date "2021.04.27"]
[Round "5"]
[White "attack2mateU"]
[Black "AlexTriapishko"]
[Result "0-1"]
[WhiteElo "2731"]
[BlackElo "2873"]
[TimeControl "180+1"]
[EndTime "10:56:22 PDT"]
[Termination "AlexTriapishko won by resignation"]

1. e4 {[%clk 0:03:00.9]} 1... c5 {[%clk 0:02:39.1]} 2. Nf3 {[%clk 0:03:00.8]}
2... Nc6 {[%clk 0:02:35.6]} 3. Bb5 {[%clk 0:02:59.2]} 3... g6 {[%clk 0:02:32.1]}
4. O-O {[%clk 0:02:58.5]} 4... Bg7 {[%clk 0:02:32.5]} 5. c3 {[%clk 0:02:58]}
5... Nf6 {[%clk 0:02:31.2]} 6. Re1 {[%clk 0:02:57.8]} 6... O-O {[%clk
0:02:30.1]} 7. d4 {[%clk 0:02:57.7]} 7... cxd4 {[%clk 0:02:30.4]} 8. cxd4 {[%clk
0:02:57.8]} 8... d5 {[%clk 0:02:31]} 9. e5 {[%clk 0:02:56]} 9... Ne4 {[%clk
0:02:31.6]} 10. Bxc6 {[%clk 0:02:55.2]} 10... bxc6 {[%clk 0:02:29.1]} 11. Be3
{[%clk 0:02:54.9]} 11... Rb8 {[%clk 0:02:11.3]} 12. Qc1 {[%clk 0:02:44.4]} 12...
Bg4 {[%clk 0:01:41.2]} 13. h3 {[%clk 0:02:42.5]} 13... Bf5 {[%clk 0:01:27.1]}
14. Nbd2 {[%clk 0:02:04]} 14... Qb6 {[%clk 0:01:15.4]} 15. b3 {[%clk 0:01:41.3]}
15... a5 {[%clk 0:01:11.5]} 16. g4 {[%clk 0:01:20.4]} 16... Nxd2 {[%clk
0:01:09.4]} 17. Qxd2 {[%clk 0:01:19.7]} 17... Be6 {[%clk 0:00:58]} 18. Rab1
{[%clk 0:01:13.8]} 18... Rfc8 {[%clk 0:00:54.3]} 19. Bf4 {[%clk 0:01:09.9]}
19... Qb4 {[%clk 0:00:50]} 20. Qe3 {[%clk 0:01:09.6]} 20... c5 {[%clk
0:00:45.4]} 21. Bg5 {[%clk 0:00:56.4]} 21... cxd4 {[%clk 0:00:39.9]} 22. Nxd4
{[%clk 0:00:57.3]} 22... Rc3 {[%clk 0:00:39.8]} 23. Qf4 {[%clk 0:00:42.1]} 23...
Rxh3 {[%clk 0:00:34.3]} 24. Rbc1 {[%clk 0:00:22.9]} 24... h6 {[%clk 0:00:32.5]}
25. Nxe6 {[%clk 0:00:21.8]} 25... fxe6 {[%clk 0:00:20.1]} 26. Qxb4 {[%clk
0:00:20.1]} 26... Rxb4 {[%clk 0:00:20.6]} 27. Bxe7 {[%clk 0:00:20.4]} 27...
Rxg4+ {[%clk 0:00:20.4]} 28. Kf1 {[%clk 0:00:21.1]} 28... Rh1+ {[%clk
0:00:20.5]} 29. Ke2 {[%clk 0:00:21.4]} 29... Re4+ {[%clk 0:00:21]} 30. Kd2
{[%clk 0:00:21.2]} 30... Rhxe1 {[%clk 0:00:16.9]} 31. Rxe1 {[%clk 0:00:22.1]}
31... Rxe1 {[%clk 0:00:17.5]} 32. Kxe1 {[%clk 0:00:22.5]} 32... Bxe5 {[%clk
0:00:18.3]} 33. Bd8 {[%clk 0:00:21.6]} 33... Bc3+ {[%clk 0:00:17]} 34. Ke2
{[%clk 0:00:22.2]} 34... Kf7 {[%clk 0:00:12.8]} 35. Kd3 {[%clk 0:00:22.4]} 35...
Be1 {[%clk 0:00:12.8]} 36. Ke2 {[%clk 0:00:21.8]} 36... Bb4 {[%clk 0:00:13]} 37.
a3 {[%clk 0:00:21.2]} 37... Bxa3 {[%clk 0:00:12.5]} 38. Bxa5 {[%clk 0:00:21.9]}
38... Ke7 {[%clk 0:00:10.9]} 39. b4 {[%clk 0:00:21.5]} 39... Kd6 {[%clk
0:00:09.7]} 40. Kd2 {[%clk 0:00:21.9]} 40... Kc6 {[%clk 0:00:09.5]} 41. Kc2
{[%clk 0:00:22]} 41... Kb5 {[%clk 0:00:09.9]} 42. Kb3 {[%clk 0:00:21.2]} 42...
Bc1 {[%clk 0:00:10.2]} 43. Bd8 {[%clk 0:00:21]} 43... h5 {[%clk 0:00:10]} 44. f3
{[%clk 0:00:19.8]} 44... Bd2 {[%clk 0:00:10.1]} 45. Be7 {[%clk 0:00:19.9]} 45...
Be1 {[%clk 0:00:10.7]} 0-1

[Event "*** Titled Tuesday Blitz"]
[Site "Chess.com"]
[Date "2021.04.27"]
[Round "5"]
[White "atwalcb"]
[Black "Buffy7"]
[Result "0-1"]
[WhiteElo "2449"]
[BlackElo "2692"]
[TimeControl "180+1"]
[EndTime "10:56:22 PDT"]
[Termination "Buffy7 won on time"]

1. d4 {[%clk 0:02:30.6]} 1... Nf6 {[%clk 0:02:59.3]} 2. Bg5 {[%clk 0:02:27.9]}
2... e6 {[%clk 0:02:57.9]} 3. e4 {[%clk 0:02:27.7]} 3... h6 {[%clk 0:02:57.4]}
4. Bxf6 {[%clk 0:02:27.3]} 4... Qxf6 {[%clk 0:02:58.3]} 5. c3 {[%clk 0:02:28.1]}
5... Qd8 {[%clk 0:02:57.6]} 6. Nd2 {[%clk 0:02:28.5]} 6... d5 {[%clk 0:02:58]}
7. Bd3 {[%clk 0:02:28.6]} 7... c5 {[%clk 0:02:55.1]} 8. Ne2 {[%clk 0:02:28.5]}
8... Nc6 {[%clk 0:02:53]} 9. e5 {[%clk 0:02:24.3]} 9... cxd4 {[%clk 0:02:43.9]}
10. cxd4 {[%clk 0:02:25.2]} 10... Qb6 {[%clk 0:02:44]} 11. O-O {[%clk
0:02:18.9]} 11... Bd7 {[%clk 0:02:43.9]} 12. Nb3 {[%clk 0:02:15.6]} 12... Be7
{[%clk 0:02:31.7]} 13. f4 {[%clk 0:02:12]} 13... g6 {[%clk 0:02:24.7]} 14. Kh1
{[%clk 0:02:11.9]} 14... h5 {[%clk 0:02:22.7]} 15. Qe1 {[%clk 0:01:55.9]} 15...
Nb4 {[%clk 0:02:13.9]} 16. Bb1 {[%clk 0:01:54.9]} 16... Rc8 {[%clk 0:02:13.4]}
17. Qg3 {[%clk 0:01:50.6]} 17... Bb5 {[%clk 0:01:58]} 18. Rf2 {[%clk 0:01:09.2]}
18... a5 {[%clk 0:01:33]} 19. Bxg6 {[%clk 0:01:07.6]} 19... Rg8 {[%clk
0:01:28.6]} 20. f5 {[%clk 0:01:05.3]} 20... exf5 {[%clk 0:00:58.7]} 21. Bxf7+
{[%clk 0:01:02]} 21... Kxf7 {[%clk 0:00:59.2]} 22. Rxf5+ {[%clk 0:01:02.6]}
22... Ke6 {[%clk 0:00:59.5]} 23. Qh3 {[%clk 0:01:02.9]} 23... Rg4 {[%clk
0:00:53.6]} 24. Nf4+ {[%clk 0:00:52.9]} 24... Kd7 {[%clk 0:00:21.7]} 25. Rxh5
{[%clk 0:00:51.1]} 25... Rg8 {[%clk 0:00:20.8]} 26. Rh7 {[%clk 0:00:48.3]} 26...
Kd8 {[%clk 0:00:19.2]} 27. Nc5 {[%clk 0:00:35]} 27... Bxc5 {[%clk 0:00:12.6]}
28. dxc5 {[%clk 0:00:35.9]} 28... Qc6 {[%clk 0:00:10.9]} 29. Nh5 {[%clk
0:00:26]} 29... Nd3 {[%clk 0:00:07]} 30. Rf1 {[%clk 0:00:21.5]} 30... Nxe5
{[%clk 0:00:05.6]} 31. Rf4 {[%clk 0:00:09.9]} 31... Qxc5 {[%clk 0:00:05.3]} 32.
Ng3 {[%clk 0:00:04.2]} 32... Qc1+ {[%clk 0:00:02.3]} 33. Rf1 {[%clk 0:00:03.1]}
33... Bxf1 {[%clk 0:00:03.2]} 0-1

[Event "*** Titled Tuesday Blitz"]
[Site "Chess.com"]
[Date "2021.04.27"]
[Round "5"]
[White "tteshan"]
[Black "vanyakuba"]
[Result "0-1"]
[WhiteElo "2244"]
[BlackElo "2393"]
[TimeControl "180+1"]
[EndTime "10:56:23 PDT"]
[Termination "vanyakuba won on time"]

1. e4 {[%clk 0:03:00.9]} 1... d5 {[%clk 0:03:00]} 2. exd5 {[%clk 0:03:00.2]}
2... Qxd5 {[%clk 0:03:00.9]} 3. Nc3 {[%clk 0:02:59.8]} 3... Qa5 {[%clk
0:03:00.9]} 4. d4 {[%clk 0:02:58.3]} 4... Nf6 {[%clk 0:03:00.8]} 5. Nf3 {[%clk
0:02:58.8]} 5... Bg4 {[%clk 0:03:00.5]} 6. Be2 {[%clk 0:02:58.5]} 6... Nc6
{[%clk 0:03:00.3]} 7. h3 {[%clk 0:02:58.3]} 7... Bh5 {[%clk 0:03:00.1]} 8. O-O
{[%clk 0:02:57.9]} 8... O-O-O {[%clk 0:03:00.1]} 9. Be3 {[%clk 0:02:51.9]} 9...
e5 {[%clk 0:02:59.9]} 10. Nxe5 {[%clk 0:02:37.6]} 10... Bxe2 {[%clk 0:02:58.4]}
11. Qxe2 {[%clk 0:02:37.3]} 11... Nxe5 {[%clk 0:02:58.3]} 12. dxe5 {[%clk
0:02:36.4]} 12... Qxe5 {[%clk 0:02:59.2]} 13. Qc4 {[%clk 0:02:16.8]} 13... Bd6
{[%clk 0:02:53]} 14. g3 {[%clk 0:02:06.9]} 14... Qh5 {[%clk 0:02:17.9]} 15. Kg2
{[%clk 0:01:32.6]} 15... a6 {[%clk 0:02:10]} 16. b4 {[%clk 0:01:22.6]} 16...
Rhe8 {[%clk 0:01:17.2]} 17. b5 {[%clk 0:01:16.2]} 17... Rxe3 {[%clk 0:01:15.5]}
18. fxe3 {[%clk 0:01:14.9]} 18... Qe5 {[%clk 0:01:15.5]} 19. Rf3 {[%clk
0:00:46.2]} 19... axb5 {[%clk 0:01:15.5]} 20. Qd4 {[%clk 0:00:26.3]} 20... b4
{[%clk 0:01:05.3]} 21. Ne2 {[%clk 0:00:20.6]} 21... c5 {[%clk 0:00:56.5]} 22.
Qxe5 {[%clk 0:00:19.5]} 22... Bxe5 {[%clk 0:00:57.4]} 23. Raf1 {[%clk
0:00:16.4]} 23... Rd2 {[%clk 0:00:57.2]} 24. R1f2 {[%clk 0:00:13.1]} 24... Ne4
{[%clk 0:00:42.5]} 25. Rxf7 {[%clk 0:00:09.3]} 25... Nxf2 {[%clk 0:00:42.4]} 26.
Kxf2 {[%clk 0:00:09.5]} 26... Rxc2 {[%clk 0:00:41]} 27. Re7 {[%clk 0:00:07.4]}
27... Bf6 {[%clk 0:00:34.9]} 28. Re8+ {[%clk 0:00:06]} 28... Kd7 {[%clk
0:00:34.8]} 29. Rb8 {[%clk 0:00:06]} 29... Rxa2 {[%clk 0:00:32]} 30. Rxb7+
{[%clk 0:00:05.9]} 30... Kc6 {[%clk 0:00:32.2]} 31. Rb8 {[%clk 0:00:05.7]} 31...
Kc7 {[%clk 0:00:29.9]} 32. Rb5 {[%clk 0:00:04.9]} 32... Kc6 {[%clk 0:00:30.2]}
33. Rb8 {[%clk 0:00:05]} 33... Be5 {[%clk 0:00:22.2]} 34. Rc8+ {[%clk
0:00:04.4]} 34... Bc7 {[%clk 0:00:20.6]} 35. Ke1 {[%clk 0:00:03.9]} 35... Kb7
{[%clk 0:00:19.4]} 36. Rg8 {[%clk 0:00:03.4]} 36... b3 {[%clk 0:00:18.7]} 37.
Rxg7 {[%clk 0:00:02]} 37... Rxe2+ {[%clk 0:00:17.1]} 38. Kxe2 {[%clk 0:00:02.1]}
38... b2 {[%clk 0:00:17.7]} 39. Rxh7 {[%clk 0:00:02.4]} 39... b1=Q {[%clk
0:00:18.1]} 40. Rf7 {[%clk 0:00:02.1]} 40... Qa2+ {[%clk 0:00:17.6]} 0-1

[Event "*** Titled Tuesday Blitz"]
[Site "Chess.com"]
[Date "2021.04.27"]
[Round "5"]
[White "Artem_Sadovsky"]
[Black "Nafania1"]
[Result "0-1"]
[WhiteElo "2695"]
[BlackElo "2547"]
[TimeControl "180+1"]
[EndTime "10:56:26 PDT"]
[Termination "Nafania1 won by resignation"]

1. Nf3 {[%clk 0:03:00.9]} 1... c5 {[%clk 0:02:59.4]} 2. b3 {[%clk 0:03:00.7]}
2... Nc6 {[%clk 0:02:58.9]} 3. Bb2 {[%clk 0:03:00.7]} 3... Nf6 {[%clk
0:02:54.6]} 4. e3 {[%clk 0:03:00.5]} 4... g6 {[%clk 0:02:47.4]} 5. g4 {[%clk
0:02:47.7]} 5... Bg7 {[%clk 0:02:40.9]} 6. g5 {[%clk 0:02:45.4]} 6... Nh5 {[%clk
0:02:41.1]} 7. Bxg7 {[%clk 0:02:45.6]} 7... Nxg7 {[%clk 0:02:41.6]} 8. d4 {[%clk
0:02:33.1]} 8... cxd4 {[%clk 0:02:34.2]} 9. Nxd4 {[%clk 0:02:33.4]} 9... d5
{[%clk 0:02:25.1]} 10. h4 {[%clk 0:02:28.8]} 10... e5 {[%clk 0:02:17.2]} 11.
Nxc6 {[%clk 0:02:12.4]} 11... bxc6 {[%clk 0:02:16.9]} 12. c4 {[%clk 0:02:12.6]}
12... O-O {[%clk 0:02:11.4]} 13. Be2 {[%clk 0:02:06.9]} 13... Be6 {[%clk
0:02:08.4]} 14. Nd2 {[%clk 0:02:00.2]} 14... e4 {[%clk 0:01:58.7]} 15. Rc1
{[%clk 0:01:47.6]} 15... f6 {[%clk 0:01:58.4]} 16. cxd5 {[%clk 0:01:45.1]} 16...
cxd5 {[%clk 0:01:58.3]} 17. f4 {[%clk 0:01:39.1]} 17... Qb6 {[%clk 0:01:41.2]}
18. Kf2 {[%clk 0:01:31.8]} 18... Nf5 {[%clk 0:01:40.8]} 19. Nf1 {[%clk
0:01:29.4]} 19... Rad8 {[%clk 0:01:21.7]} 20. Qc2 {[%clk 0:01:10]} 20... fxg5
{[%clk 0:01:21.6]} 21. hxg5 {[%clk 0:01:09.3]} 21... Nxe3 {[%clk 0:01:21.5]} 22.
Qc7 {[%clk 0:00:37]} 22... Ng4+ {[%clk 0:00:35.2]} 23. Ke1 {[%clk 0:00:36.6]}
23... Qf2+ {[%clk 0:00:35]} 24. Kd1 {[%clk 0:00:36.6]} 24... Qd4+ {[%clk
0:00:32.4]} 25. Ke1 {[%clk 0:00:35.7]} 25... Rd7 {[%clk 0:00:24.9]} 26. Bxg4
{[%clk 0:00:23.4]} 26... Bxg4 {[%clk 0:00:23.3]} 27. Qc5 {[%clk 0:00:11.6]}
27... Qxc5 {[%clk 0:00:21.2]} 28. Rxc5 {[%clk 0:00:12.5]} 28... d4 {[%clk
0:00:20.9]} 29. Rg1 {[%clk 0:00:04.9]} 29... Rxf4 {[%clk 0:00:19.5]} 30. Nd2
{[%clk 0:00:03.4]} 30... Bf5 {[%clk 0:00:19.2]} 31. Nc4 {[%clk 0:00:02.9]} 31...
e3 {[%clk 0:00:17.5]} 32. Re5 {[%clk 0:00:03]} 32... Kg7 {[%clk 0:00:16.9]} 33.
Rg2 {[%clk 0:00:02]} 33... Re4 {[%clk 0:00:16.8]} 34. Rg1 {[%clk 0:00:02.5]}
34... Rxe5 {[%clk 0:00:16.8]} 35. Nxe5 {[%clk 0:00:03.4]} 35... Rc7 {[%clk
0:00:17]} 36. Nc4 {[%clk 0:00:03.4]} 36... Bd3 {[%clk 0:00:16.3]} 37. Rg4 {[%clk
0:00:01.2]} 37... Bxc4 {[%clk 0:00:16.5]} 38. bxc4 {[%clk 0:00:02.1]} 38... Rxc4
{[%clk 0:00:16.8]} 39. Re4 {[%clk 0:00:02.4]} 39... Kf7 {[%clk 0:00:16.2]} 40.
Ke2 {[%clk 0:00:02.6]} 40... d3+ {[%clk 0:00:15.5]} 0-1

[Event "*** Titled Tuesday Blitz"]
[Site "Chess.com"]
[Date "2021.04.27"]
[Round "5"]
[White "ShahMatKanal"]
[Black "chess94cu"]
[Result "1-0"]
[WhiteElo "2427"]
[BlackElo "2568"]
[TimeControl "180+1"]
[EndTime "10:56:29 PDT"]
[Termination "ShahMatKanal won by resignation"]

1. e4 {[%clk 0:02:58.9]} 1... d6 {[%clk 0:02:55.6]} 2. d4 {[%clk 0:02:58.5]}
2... Nd7 {[%clk 0:02:56.1]} 3. Nf3 {[%clk 0:02:54.8]} 3... Ngf6 {[%clk 0:02:56]}
4. e5 {[%clk 0:02:25.9]} 4... Nd5 {[%clk 0:02:54.6]} 5. c4 {[%clk 0:02:18.4]}
5... N5b6 {[%clk 0:02:53.7]} 6. Nc3 {[%clk 0:02:14.5]} 6... e6 {[%clk
0:02:49.3]} 7. Bd3 {[%clk 0:01:59.1]} 7... Be7 {[%clk 0:02:36.9]} 8. Qe2 {[%clk
0:01:52.7]} 8... dxe5 {[%clk 0:02:08.7]} 9. dxe5 {[%clk 0:01:46.9]} 9... Nc5
{[%clk 0:02:09]} 10. Bc2 {[%clk 0:01:46.2]} 10... a5 {[%clk 0:02:09.5]} 11. Be3
{[%clk 0:01:39.4]} 11... Bd7 {[%clk 0:02:07.2]} 12. Rd1 {[%clk 0:01:31.6]} 12...
Qc8 {[%clk 0:02:05.3]} 13. h4 {[%clk 0:01:23.1]} 13... h6 {[%clk 0:01:41.3]} 14.
Rh3 {[%clk 0:01:19]} 14... Bc6 {[%clk 0:01:34.8]} 15. h5 {[%clk 0:01:10]} 15...
Bxf3 {[%clk 0:01:28.9]} 16. Rxf3 {[%clk 0:01:03]} 16... Nbd7 {[%clk 0:01:24.3]}
17. Bf4 {[%clk 0:00:51.7]} 17... c6 {[%clk 0:01:23.3]} 18. Rg3 {[%clk
0:00:49.8]} 18... Kf8 {[%clk 0:01:22.2]} 19. Qg4 {[%clk 0:00:43.2]} 19... Rg8
{[%clk 0:01:17.2]} 20. Bh7 {[%clk 0:00:42.5]} 20... f5 {[%clk 0:01:11.3]} 21.
Qg6 {[%clk 0:00:31]} 21... Qe8 {[%clk 0:01:11.1]} 22. Qxe8+ {[%clk 0:00:28.9]}
22... Rxe8 {[%clk 0:01:09.8]} 23. Bxg8 {[%clk 0:00:29.8]} 23... Kxg8 {[%clk
0:01:08.5]} 24. Bxh6 {[%clk 0:00:29.9]} 24... Bf8 {[%clk 0:01:08.7]} 25. Bf4
{[%clk 0:00:27.3]} 25... Kf7 {[%clk 0:01:08.2]} 26. Kf1 {[%clk 0:00:24.1]} 26...
a4 {[%clk 0:01:05.1]} 27. Nxa4 {[%clk 0:00:23.1]} 27... Ra8 {[%clk 0:01:01]} 28.
Nxc5 {[%clk 0:00:22.6]} 28... Nxc5 {[%clk 0:01:01.9]} 29. a3 {[%clk 0:00:22.5]}
29... Ne4 {[%clk 0:01:02.4]} 30. Rgd3 {[%clk 0:00:21.3]} 30... Be7 {[%clk
0:00:55.5]} 31. f3 {[%clk 0:00:19.7]} 31... b5 {[%clk 0:00:56.4]} 32. fxe4
{[%clk 0:00:19.4]} 32... bxc4 {[%clk 0:00:54.6]} 33. Rd7 {[%clk 0:00:19.2]}
33... fxe4 {[%clk 0:00:55.5]} 34. Ke2 {[%clk 0:00:18.5]} 34... Ke8 {[%clk
0:00:54.8]} 35. Rxe7+ {[%clk 0:00:18.2]} 35... Kxe7 {[%clk 0:00:54.2]} 36. Ke3
{[%clk 0:00:19.1]} 36... Rb8 {[%clk 0:00:53.8]} 37. Rd2 {[%clk 0:00:18.7]} 37...
Rb3+ {[%clk 0:00:54.2]} 38. Kxe4 {[%clk 0:00:19.3]} 38... c5 {[%clk 0:00:54.4]}
39. Bg5+ {[%clk 0:00:18.8]} 39... Kf7 {[%clk 0:00:54.6]} 40. g4 {[%clk
0:00:17.3]} 40... Kg8 {[%clk 0:00:52.2]} 41. Rc2 {[%clk 0:00:16.7]} 41... Kf7
{[%clk 0:00:49.6]} 42. Rxc4 {[%clk 0:00:16.9]} 42... Rxb2 {[%clk 0:00:50.2]} 43.
Rxc5 {[%clk 0:00:17.3]} 43... Rb3 {[%clk 0:00:49.9]} 44. Rc7+ {[%clk 0:00:16.7]}
44... Kg8 {[%clk 0:00:49.5]} 45. Re7 {[%clk 0:00:16.3]} 45... Rxa3 {[%clk
0:00:50]} 46. Rxe6 {[%clk 0:00:16.3]} 46... Ra4+ {[%clk 0:00:50.9]} 47. Kf5
{[%clk 0:00:16.5]} 47... Kh7 {[%clk 0:00:51.8]} 48. h6 {[%clk 0:00:16.1]} 48...
gxh6 {[%clk 0:00:50.5]} 49. Rxh6+ {[%clk 0:00:16.5]} 49... Kg7 {[%clk
0:00:50.1]} 50. Rd6 {[%clk 0:00:17.4]} 50... Ra1 {[%clk 0:00:48.9]} 51. Bf6+
{[%clk 0:00:17.7]} 51... Kh7 {[%clk 0:00:46.9]} 52. Rd7+ {[%clk 0:00:17.6]}
52... Kg8 {[%clk 0:00:47.2]} 53. g5 {[%clk 0:00:17.6]} 53... Ra8 {[%clk
0:00:44.7]} 54. Kg6 {[%clk 0:00:17.4]} 54... Rc8 {[%clk 0:00:43.3]} 55. Rh7
{[%clk 0:00:17.2]} 1-0